bitfinex/quotes_BTCUSD_20250123
["timestamp","ask_amount","ask_price","bid_price","bid_amount"]
[1737600056840,0.43084729,102170.0,102160.0,0.09818404]
[1737600057014,0.51792329,102170.0,102160.0,0.09818404]
[1737600057214,0.52872329,102170.0,102160.0,0.09818404]
[1737600057398,0.43084729,102170.0,102160.0,0.09818404]
[1737600059226,0.52872329,102170.0,102160.0,0.09818404]
[1737600059456,0.43084729,102170.0,102160.0,0.09818404]
[1737600060364,0.42004729,102170.0,102160.0,0.09818404]
[1737600060587,0.43084729,102170.0,102160.0,0.09818404]
[1737600060960,0.3227,102170.0,102160.0,0.09818404]
[1737600061148,0.3335,102170.0,102160.0,0.09818404]
[1737600061991,0.43084729,102170.0,102160.0,0.09818404]
[1737600062190,0.52872329,102170.0,102160.0,0.09818404]
[1737600062392,0.52872329,102170.0,102160.0,0.00029904]
[1737600062629,0.52872329,102170.0,102160.0,0.09818404]
[1737600062964,0.52872329,102170.0,102160.0,0.00029904]
[1737600063136,0.52872329,102170.0,102160.0,0.09818404]
[1737600063527,0.52872329,102170.0,102160.0,0.00029904]
[1737600063849,0.54872329,102170.0,102160.0,0.00029904]
[1737600064377,0.63082329,102170.0,102160.0,0.00029904]
[1737600066943,0.63082329,102170.0,102160.0,0.24818404]
[1737600066944,0.50214729,102170.0,102160.0,0.24818404]
[1737600067147,0.42004729,102170.0,102160.0,0.24818404]
[1737600067403,0.3337,102170.0,102160.0,0.24818404]
[1737600069048,0.553,102170.0,102160.0,0.24818404]
[1737600071188,0.553,102170.0,102160.0,0.25775406]
[1737600071416,0.553,102170.0,102160.0,1.59975406]
[1737600071821,0.62877896,102180.0,102170.0,0.327676]
[1737600072048,0.62877896,102180.0,102170.0,5.30185038]
[1737600072222,0.08677896,102180.0,102170.0,5.51729767]
[1737600072571,9.6e-07,102180.0,102170.0,5.51729767]
[1737600072712,0.00024104,102200.0,102190.0,0.377656]
[1737600072911,0.00024104,102200.0,102190.0,5.32883038]
[1737600073324,0.00024104,102200.0,102190.0,5.51727767]
[1737600073684,0.00024104,102200.0,102190.0,5.49727767]
[1737600073871,0.00024104,102200.0,102190.0,5.51727767]
[1737600074456,0.00024104,102200.0,102190.0,5.49727767]
[1737600074680,0.00024104,102200.0,102190.0,5.32807767]
[1737600074875,0.00024104,102200.0,102190.0,5.34807767]
[1737600076103,4e-08,102200.0,102190.0,5.34807767]
[1737600076306,4e-08,102200.0,102190.0,0.59537767]
[1737600079702,4e-08,102200.0,102190.0,0.60522982]
[1737600083206,3.4e-07,102220.0,102210.0,0.379637]
[1737600083457,3.4e-07,102220.0,102210.0,0.47625867]
[1737600083659,3.4e-07,102220.0,102210.0,5.25825867]
[1737600083864,3.4e-07,102220.0,102210.0,0.47925867]
[1737600084043,3.4e-07,102220.0,102210.0,0.27711138]
[1737600084774,3.4e-07,102220.0,102210.0,0.41745867]
[1737600085209,3.4e-07,102220.0,102210.0,0.39745867]
[1737600085850,3.4e-07,102220.0,102210.0,0.41745867]
[1737600086472,3.4e-07,102220.0,102210.0,0.46745867]
[1737600086679,0.00029925,102240.0,102210.0,0.46745867]
[1737600086680,0.00029925,102240.0,102230.0,0.320818]
[1737600086834,0.00045073,102240.0,102230.0,5.47113967]
[1737600087065,7.7e-07,102250.0,102240.0,0.340809]
[1737600087270,7.7e-07,102250.0,102240.0,5.40705629]
[1737600087465,7.7e-07,102250.0,102240.0,0.48515629]
[1737600088745,0.0001424,102270.0,102260.0,0.247789]
[1737600088861,0.0001424,102270.0,102260.0,5.19896338]
[1737600089309,0.0001424,102270.0,102260.0,5.33931067]
[1737600089662,0.0001424,102270.0,102260.0,5.36261898]
[1737600089865,0.0001424,102270.0,102260.0,5.38240966]
[1737600090120,0.0001424,102270.0,102260.0,5.36261898]
[1737600090319,0.0001424,102270.0,102260.0,5.33931067]
[1737600090495,0.0001424,102270.0,102260.0,5.38240966]
[1737600090782,0.0001424,102270.0,102260.0,5.51420966]
[1737600091191,0.0001424,102270.0,102260.0,5.16530966]
[1737600091421,0.0001424,102270.0,102260.0,4.28120966]
[1737600091592,0.0001424,102270.0,102260.0,3.99741898]
[1737600092150,0.00029925,102280.0,102260.0,3.99741898]
[1737600092151,0.00025965,102280.0,102270.0,0.05]
[1737600092351,4.8e-07,102280.0,102270.0,5.50959553]
[1737600092552,0.08649558,102290.0,102280.0,5.26267]
[1737600092754,0.00019147,102290.0,102280.0,5.41259998]
[1737600093263,0.00019147,102290.0,102280.0,5.43239066]
[1737600093946,4.7e-07,102290.0,102280.0,5.43239066]
[1737600094149,4.7e-07,102290.0,102280.0,0.51049066]
[1737600094773,4.7e-07,102290.0,102280.0,0.48718235]
[1737600095109,4.7e-07,102290.0,102280.0,0.46739167]
[1737600095229,4.7e-07,102290.0,102280.0,0.48718235]
[1737600095654,4.7e-07,102290.0,102280.0,0.46739167]
[1737600096053,4.7e-07,102290.0,102280.0,0.51049066]
[1737600096657,4.7e-07,102290.0,102280.0,0.49069998]
[1737600097064,4.7e-07,102290.0,102280.0,0.51049066]
[1737600097482,0.0455,102340.0,102320.0,0.15]
[1737600097815,0.05849136,102340.0,102330.0,0.42920535]
[1737600098015,0.05849136,102340.0,102330.0,0.45251366]
[1737600098571,0.05849136,102340.0,102330.0,0.42920535]
[1737600098905,0.05849136,102340.0,102330.0,0.45251366]
[1737600099482,0.05849136,102340.0,102330.0,0.42920535]
[1737600099892,0.05849136,102340.0,102330.0,0.45251366]
[1737600100124,0.05849136,102340.0,102330.0,0.42920535]
[1737600100650,0.05840251,102340.0,102330.0,0.405523]
[1737600100860,0.05840251,102340.0,102330.0,0.097723]
[1737600100861,0.1557498,102340.0,102330.0,0.097723]
[1737600102406,0.15672957,102340.0,102330.0,0.097723]
[1737600102619,0.14388957,102340.0,102330.0,0.07574545]
[1737600102820,0.23952957,102340.0,102330.0,0.07574545]
[1737600103037,0.2385498,102340.0,102330.0,0.22574545]
[1737600103689,0.7805498,102340.0,102330.0,0.15]
[1737600103838,0.8782628,102340.0,102330.0,0.247723]
[1737600104046,0.7805498,102340.0,102330.0,0.247723]
[1737600104453,0.8654228,102340.0,102330.0,0.247723]
[1737600104625,0.8782628,102340.0,102330.0,0.15]
[1737600104850,0.7805498,102340.0,102330.0,0.247723]
[1737600105053,0.8782628,102340.0,102330.0,0.247723]
[1737600105546,0.7805498,102340.0,102330.0,0.247723]
[1737600105820,0.7677098,102340.0,102330.0,0.247723]
[1737600106003,0.7805498,102340.0,102330.0,0.247723]
[1737600107047,0.8782628,102340.0,102330.0,0.247723]
[1737600107228,0.7805498,102340.0,102330.0,0.247723]
[1737600107632,0.2385498,102340.0,102330.0,0.247723]
[1737600110016,0.2385498,102340.0,102330.0,0.24802162]
[1737600110258,0.238692,102340.0,102330.0,0.24802162]
[1737600112205,0.19328085,102340.0,102330.0,0.24802162]
[1737600112406,0.00029356,102340.0,102330.0,0.24802162]
[1737600112814,0.00029356,102340.0,102330.0,1.340696]
[1737600116730,0.0155629,102350.0,102330.0,1.36400264]
[1737600117106,9e-07,102350.0,102340.0,5.2679372]
[1737600117285,9e-07,102350.0,102340.0,0.41602477]
[1737600117637,9e-07,102350.0,102340.0,0.247713]
[1737600118043,0.0767009,102350.0,102340.0,0.247713]
[1737600118322,0.17404819,102350.0,102340.0,0.247713]
[1737600118474,0.17502796,102350.0,102340.0,0.247713]
[1737600118858,0.17502796,102350.0,102330.0,0.00029862]
[1737600118859,0.174413,102340.0,102330.0,0.00029862]
[1737600119039,0.32214006,102340.0,102330.0,0.00029862]
[1737600119237,0.32116029,102340.0,102330.0,0.00029862]
[1737600120259,0.22344729,102340.0,102330.0,0.09802162]
[1737600120469,0.32116029,102340.0,102330.0,0.00029862]
[1737600120668,0.32116029,102340.0,102320.0,0.46695586]
[1737600120969,0.09832706,102330.0,102320.0,0.42165222]
[1737600121750,0.09734729,102330.0,102320.0,0.62265222]
[1737600121951,0.11018729,102330.0,102320.0,0.62265222]
[1737600122153,0.1261,102340.0,102330.0,0.247723]
[1737600122365,0.08954,102340.0,102330.0,0.247723]
[1737600122551,0.0896822,102340.0,102330.0,0.885023]
[1737600123221,0.0129822,102340.0,102330.0,0.778223]
[1737600123634,0.0129822,102340.0,102330.0,0.247723]
[1737600123838,0.0129822,102340.0,102330.0,1.00669738]
[1737600124248,0.0129822,102340.0,102330.0,0.27699738]
[1737600124729,0.0129822,102340.0,102330.0,0.247723]
[1737600124912,0.11032949,102340.0,102330.0,0.247723]
[1737600125824,0.11032949,102340.0,102330.0,0.27699738]
[1737600126376,0.11032949,102340.0,102330.0,0.247723]
[1737600126708,0.11032949,102340.0,102330.0,0.27699738]
[1737600126874,0.0129822,102340.0,102330.0,0.27699738]
[1737600127077,0.0129822,102340.0,102330.0,0.44191189]
[1737600127929,0.0001422,102340.0,102330.0,4.04301189]
[1737600128134,0.0001422,102340.0,102330.0,2.06011189]
[1737600128474,0.0001422,102340.0,102330.0,1.72031189]
[1737600128877,0.0001422,102340.0,102330.0,1.79911189]
[1737600129484,0.0001422,102340.0,102330.0,2.03743751]
[1737600130628,0.0001422,102340.0,102330.0,2.04713506]
[1737600131058,0.0001422,102340.0,102330.0,2.18748235]
[1737600131655,0.0001422,102340.0,102330.0,0.56268235]
[1737600131950,0.0001422,102340.0,102330.0,4.25438235]
[1737600132367,0.0001422,102340.0,102330.0,4.11403506]
[1737600132728,0.09748949,102340.0,102330.0,0.10742055]
[1737600132928,0.09748949,102340.0,102330.0,0.25742055]
[1737600133229,0.17808949,102340.0,102330.0,0.10742055]
[1737600133437,0.17808949,102340.0,102330.0,0.097723]
[1737600133830,0.17808949,102340.0,102330.0,0.247723]
[1737600135218,0.09748949,102340.0,102330.0,0.247723]
[1737600135666,0.09846926,102340.0,102330.0,0.247723]
[1737600136234,0.11130926,102340.0,102330.0,0.247723]
[1737600136540,0.19190926,102340.0,102330.0,0.247723]
[1737600136947,0.20183981,102340.0,102330.0,0.247723]
[1737600137487,0.20086004,102340.0,102330.0,0.247723]
[1737600137883,0.20183981,102340.0,102330.0,0.247723]
[1737600138970,0.20086004,102340.0,102330.0,0.247723]
[1737600139175,0.10742004,102340.0,102330.0,0.41263751]
[1737600139382,0.11008949,102340.0,102330.0,0.41263751]
[1737600139580,0.0127422,102340.0,102330.0,2.60383751]
[1737600139761,0.0127422,102340.0,102330.0,0.86603751]
[1737600139762,0.0001422,102340.0,102330.0,0.86603751]
[1737600143155,0.0001422,102340.0,102330.0,0.91603751]
[1737600143699,0.0001422,102340.0,102330.0,0.97095944]
[1737600143913,2e-07,102340.0,102330.0,1.11130673]
[1737600144117,2e-07,102340.0,102330.0,0.63790673]
[1737600144353,2e-07,102340.0,102330.0,0.65790673]
[1737600145854,2e-07,102340.0,102330.0,0.60790673]
[1737600147584,2e-07,102340.0,102330.0,0.73760673]
[1737600147771,2e-07,102340.0,102330.0,0.68760673]
[1737600147967,2e-07,102340.0,102330.0,0.73760673]
[1737600148786,2e-07,102340.0,102330.0,0.76557121]
[1737600148938,2e-07,102340.0,102330.0,0.62025944]
[1737600149139,2e-07,102340.0,102330.0,0.31755944]
[1737600150771,2e-07,102340.0,102330.0,0.46755944]
[1737600151674,2e-07,102340.0,102330.0,0.35764122]
[1737600151890,2e-07,102340.0,102330.0,0.20764122]
[1737600152271,2e-07,102340.0,102330.0,0.31853653]
[1737600152482,2e-07,102340.0,102330.0,0.31755944]
[1737600152680,2e-07,102340.0,102330.0,0.46755944]
[1737600153130,2e-07,102340.0,102330.0,0.35764122]
[1737600153930,0.09734749,102340.0,102330.0,0.097723]
[1737600154138,0.09734749,102340.0,102330.0,4.80714122]
[1737600154341,0.09734749,102340.0,102330.0,1.21354122]
[1737600154549,2e-07,102340.0,102330.0,0.97554122]
[1737600154755,2e-07,102340.0,102330.0,0.31755944]
[1737600155000,2e-07,102340.0,102330.0,0.46755944]
[1737600155853,2e-07,102340.0,102330.0,0.35764122]
[1737600156786,2e-07,102340.0,102330.0,0.46755944]
[1737600156990,2e-07,102340.0,102330.0,0.35764122]
[1737600157192,2e-07,102340.0,102330.0,0.46755944]
[1737600157853,2e-07,102340.0,102330.0,0.35764122]
[1737600158057,2e-07,102340.0,102330.0,0.46785848]
[1737600158610,0.09734749,102340.0,102330.0,0.20794026]
[1737600158870,0.17884749,102340.0,102330.0,0.09802204]
[1737600159094,0.17884749,102340.0,102330.0,0.35794026]
[1737600159948,0.0815002,102340.0,102330.0,0.35794026]
[1737600160268,0.17884749,102340.0,102330.0,0.35794026]
[1737600161229,0.22824749,102340.0,102330.0,0.15029904]
[1737600161442,0.22824749,102340.0,102330.0,0.24802204]
[1737600161660,0.22824749,102340.0,102330.0,0.15029904]
[1737600162487,0.32596049,102340.0,102330.0,0.00029904]
[1737600164384,0.3451226,102340.0,102330.0,0.00029904]
[1737600164907,0.2474096,102340.0,102330.0,0.35794026]
[1737600165105,0.22824749,102340.0,102330.0,0.35794026]
[1737600165310,0.24036749,102340.0,102330.0,0.35794026]
[1737600165453,0.22824749,102340.0,102330.0,0.35794026]
[1737600165653,0.19096749,102340.0,102330.0,0.35794026]
[1737600165855,0.17884749,102340.0,102330.0,0.35794026]
[1737600166405,0.10946749,102340.0,102330.0,1.14094026]
[1737600166609,0.0121202,102340.0,102330.0,0.74354026]
[1737600166927,0.0121202,102340.0,102330.0,0.24802204]
[1737600167130,0.0121202,102340.0,102330.0,0.99032204]
[1737600167295,0.0121202,102340.0,102330.0,1.10024026]
[1737600167508,0.0121202,102340.0,102330.0,0.24802204]
[1737600167707,0.0121202,102340.0,102330.0,0.35794026]
[1737600168287,0.0121202,102340.0,102330.0,2.91804026]
[1737600168406,0.0121202,102340.0,102330.0,2.83104026]
[1737600169225,2e-07,102340.0,102330.0,2.94095848]
[1737600169426,2e-07,102340.0,102330.0,0.46785848]
[1737600169630,2e-07,102340.0,102330.0,0.36768536]
[1737600170658,2e-07,102340.0,102330.0,0.25776714]
[1737600170909,2e-07,102340.0,102330.0,0.36768536]
[1737600171141,0.09734749,102340.0,102330.0,0.25776714]
[1737600171310,0.17982726,102340.0,102330.0,0.25776714]
[1737600171465,0.17884749,102340.0,102330.0,0.25776714]
[1737600171664,0.17884749,102340.0,102330.0,0.26772386]
[1737600171870,0.17884749,102340.0,102330.0,0.37764208]
[1737600172497,0.17884749,102340.0,102330.0,0.26772386]
[1737600172966,0.17884749,102340.0,102330.0,0.37764208]
[1737600173193,0.17884749,102340.0,102330.0,0.26772386]
[1737600173396,0.17884749,102340.0,102330.0,0.37764208]
[1737600173591,0.17884749,102340.0,102330.0,0.26772386]
[1737600175243,0.17884749,102340.0,102330.0,0.37764208]
[1737600175442,0.17884749,102340.0,102330.0,0.26772386]
[1737600176331,0.27754026,102340.0,102330.0,0.17000086]
[1737600176536,0.27656049,102340.0,102330.0,0.25776714]
[1737600176750,0.17884749,102340.0,102330.0,0.25776714]
[1737600176956,0.27754026,102340.0,102330.0,0.25776714]
[1737600177197,0.27656049,102340.0,102330.0,0.25776714]
[1737600177394,0.17884749,102340.0,102330.0,0.25776714]
[1737600177597,0.17982726,102340.0,102330.0,0.25776714]
[1737600177814,0.17982726,102340.0,102330.0,0.16004414]
[1737600177815,0.32534026,102340.0,102330.0,0.16004414]
[1737600178018,0.32436049,102340.0,102330.0,0.01004414]
[1737600178941,0.33389791,102340.0,102330.0,0.01004414]
[1737600179722,0.34553791,102340.0,102330.0,0.01004414]
[1737600180493,0.34553791,102340.0,102330.0,0.10776714]
[1737600180826,0.24782491,102340.0,102330.0,0.01004414]
[1737600181189,0.24782491,102340.0,102330.0,0.10776714]
[1737600181441,0.26721602,102340.0,102330.0,0.10776714]
[1737600181641,0.2576786,102340.0,102330.0,0.25776714]
[1737600182820,2e-07,102340.0,102330.0,0.53968536]
[1737600182998,2e-07,102340.0,102330.0,0.36768536]
[1737600183559,2e-07,102340.0,102330.0,0.25776714]
[1737600183960,0.09734749,102340.0,102330.0,0.25776714]
[1737600184444,0.22792726,102340.0,102330.0,0.25776714]
[1737600184760,0.22694749,102340.0,102330.0,0.25776714]
[1737600190649,0.24615247,102340.0,102330.0,0.25776714]
[1737600191024,0.25779247,102340.0,102330.0,0.25776714]
[1737600191230,0.26742352,102340.0,102330.0,0.25776714]
[1737600192765,0.25779247,102340.0,102330.0,0.25776714]
[1737600193399,0.20999247,102340.0,102330.0,0.25776714]
[1737600194230,0.12819247,102340.0,102330.0,0.25776714]
[1737600195960,0.30868524,102340.0,102330.0,0.16004414]
[1737600196168,0.35670547,102340.0,102330.0,0.16004414]
[1737600196427,0.35670547,102340.0,102330.0,0.01004414]
[1737600197033,0.35670547,102340.0,102330.0,0.10776714]
[1737600197441,0.35670547,102340.0,102330.0,0.01004414]
[1737600198174,0.39576247,102340.0,102330.0,0.01004414]
[1737600198371,0.39576247,102340.0,102330.0,0.10776714]
[1737600198712,0.39576247,102340.0,102330.0,0.01004414]
[1737600202045,0.48221797,102340.0,102330.0,0.01004414]
[1737600202403,0.59213619,102340.0,102330.0,0.01004414]
[1737600202600,0.097723,102330.0,102320.0,0.00044998]
[1737600202808,1.14385006,102330.0,102320.0,0.00044998]
[1737600203027,1.25278851,102330.0,102320.0,0.00044998]
[1737600203446,1.14287029,102330.0,102320.0,0.00044998]
[1737600203678,1.16287029,102330.0,102320.0,0.00044998]
[1737600206532,1.24932579,102330.0,102320.0,0.00044998]
[1737600206772,0.6418913,102330.0,102320.0,0.00044998]
[1737600206980,0.6942913,102330.0,102320.0,0.00044998]
[1737600207170,0.59694401,102330.0,102320.0,0.00044998]
[1737600207388,0.54694401,102330.0,102320.0,0.00044998]
[1737600207688,0.61694401,102330.0,102320.0,0.00044998]
[1737600207825,0.55810401,102330.0,102320.0,0.00044998]
[1737600208047,0.62810401,102330.0,102320.0,0.00044998]
[1737600208250,0.57810401,102330.0,102320.0,0.00044998]
[1737600208446,0.60810401,102330.0,102320.0,0.00044998]
[1737600208870,0.60970125,102330.0,102320.0,0.00044998]
[1737600209588,0.62970125,102330.0,102320.0,0.00044998]
[1737600210050,0.63950543,102330.0,102320.0,0.00044998]
[1737600210299,0.49542721,102330.0,102320.0,0.00044998]
[1737600210462,0.42013171,102330.0,102320.0,0.00044998]
[1737600211596,0.91213171,102330.0,102320.0,0.00044998]
[1737600211957,0.96213171,102330.0,102320.0,0.00044998]
[1737600212619,0.91213171,102330.0,102320.0,0.00044998]
[1737600212842,1.07204993,102330.0,102320.0,0.00044998]
[1737600213042,0.96213171,102330.0,102320.0,0.00044998]
[1737600215113,0.95097171,102330.0,102320.0,0.00044998]
[1737600215286,0.96213171,102330.0,102320.0,0.00044998]
[1737600215445,0.91213171,102330.0,102320.0,0.00044998]
[1737600215651,0.96213171,102330.0,102320.0,0.00044998]
[1737600215924,0.74861421,102330.0,102320.0,0.00044998]
[1737600216054,0.75977421,102330.0,102320.0,0.09818198]
[1737600216659,0.65089121,102330.0,102320.0,0.09818198]
[1737600216880,0.66205121,102330.0,102320.0,0.1025884]
[1737600217086,0.64108703,102330.0,102320.0,0.1025884]
[1737600217290,0.00173974,102330.0,102320.0,0.2881002]
[1737600217613,0.09945628,102330.0,102320.0,0.29255007]
[1737600217987,0.08829628,102330.0,102320.0,4.13942445]
[1737600218190,0.09945628,102330.0,102320.0,4.13942445]
[1737600218592,0.09945628,102330.0,102320.0,3.65682445]
[1737600218891,0.09945628,102330.0,102320.0,3.70237458]
[1737600219358,0.09945628,102330.0,102320.0,3.65907458]
[1737600219570,0.09945628,102330.0,102320.0,2.43847458]
[1737600219943,0.09945628,102330.0,102320.0,0.4381002]
[1737600220147,0.19680357,102330.0,102320.0,0.32818198]
[1737600220374,0.19680357,102330.0,102320.0,0.3581002]
[1737600220568,0.11024703,102330.0,102320.0,0.3581002]
[1737600220887,0.01289974,102330.0,102320.0,0.3581002]
[1737600221588,0.00173974,102330.0,102320.0,0.3581002]
[1737600221788,0.11024703,102330.0,102320.0,0.24818198]
[1737600221991,0.1112268,102330.0,102320.0,0.24818198]
[1737600222201,0.1112268,102330.0,102320.0,0.3581002]
[1737600222399,0.11024703,102330.0,102320.0,0.3581002]
[1737600223185,0.11024703,102330.0,102320.0,0.36790128]
[1737600226035,0.11024703,102330.0,102320.0,0.25798306]
[1737600226604,0.11024703,102330.0,102320.0,0.36790128]
[1737600228083,0.01289974,102330.0,102320.0,0.36790128]
[1737600229023,0.11024703,102330.0,102320.0,0.25798306]
[1737600230729,0.11024703,102330.0,102320.0,0.36790128]
[1737600231711,0.01289974,102330.0,102320.0,0.39717566]
[1737600234945,0.01289974,102330.0,102320.0,0.36790128]
[1737600238886,0.2863498,102330.0,102320.0,0.09818198]
[1737600239088,0.18764703,102330.0,102320.0,0.09818198]
[1737600239289,0.1886268,102330.0,102320.0,0.09818198]
[1737600239489,0.2863498,102330.0,102320.0,0.09818198]
[1737600239672,0.28537003,102330.0,102320.0,0.09818198]
[1737600241114,0.28537003,102330.0,102320.0,0.00044998]
[1737600241323,0.33517003,102330.0,102320.0,0.09818198]
[1737600243169,0.23744703,102330.0,102320.0,0.09818198]
[1737600243912,0.33517003,102330.0,102320.0,0.09818198]
[1737600244116,0.23744703,102330.0,102320.0,0.09818198]
[1737600244320,1.10214703,102330.0,102320.0,0.09818198]
[1737600245431,1.12167225,102330.0,102320.0,0.09818198]
[1737600245997,1.21939525,102330.0,102320.0,0.09818198]
[1737600246797,1.22902739,102330.0,102320.0,0.09818198]
[1737600248693,1.13130439,102330.0,102320.0,0.09818198]
[1737600251498,1.17036439,102330.0,102320.0,0.09818198]
[1737600255101,0.74608739,102330.0,102320.0,0.00044998]
[1737600256891,0.42338739,102330.0,102320.0,0.00044998]
[1737600257834,0.38432739,102330.0,102320.0,0.00044998]
[1737600258785,0.38432739,102330.0,102320.0,0.09818198]
[1737600259187,0.38432739,102330.0,102320.0,0.00044998]
[1737600260280,0.47088393,102330.0,102320.0,0.00044998]
[1737600267380,0.47088393,102330.0,102320.0,0.09818198]
[1737600268096,0.47088393,102330.0,102320.0,0.00044998]
[1737600269277,0.70814944,102330.0,102320.0,0.00044998]
[1737600269514,1.65936766,102330.0,102320.0,0.00044998]
[1737600269708,1.56202037,102330.0,102320.0,0.00044998]
[1737600270469,1.45210215,102330.0,102320.0,0.00044998]
[1737600271700,1.50210215,102330.0,102320.0,0.00044998]
[1737600272511,1.45210215,102330.0,102320.0,0.00044998]
[1737600272972,1.36554561,102330.0,102320.0,0.00044998]
[1737600273593,1.41554561,102330.0,102320.0,0.00044998]
[1737600273889,0.49724561,102330.0,102320.0,0.00044998]
[1737600274746,0.09908703,102330.0,102320.0,4.15537402]
[1737600274969,0.00173974,102330.0,102320.0,0.50776468]
[1737600275180,0.09908703,102330.0,102320.0,0.4798002]
[1737600275400,0.09908703,102330.0,102320.0,0.37432156]
[1737600275678,0.09908703,102330.0,102320.0,0.48423978]
[1737600276153,0.10948703,102330.0,102320.0,0.48423978]
[1737600278094,0.10948703,102330.0,102320.0,0.49380632]
[1737600278539,0.00173974,102330.0,102320.0,0.49380632]
[1737600278758,0.01213974,102330.0,102320.0,5.11570632]
[1737600278979,0.01213974,102330.0,102320.0,0.49380632]
[1737600279160,0.01213974,102330.0,102320.0,3.58350632]
[1737600279565,0.00173974,102330.0,102320.0,3.69342454]
[1737600280349,0.00173974,102330.0,102320.0,3.71642454]
[1737600280551,7.4e-07,102330.0,102320.0,3.71642454]
[1737600280750,7.4e-07,102330.0,102320.0,0.49380632]
[1737600306431,7.4e-07,102330.0,102320.0,0.44720632]
[1737600307342,0.09734803,102330.0,102320.0,0.1121881]
[1737600307504,0.0983278,102330.0,102320.0,0.1121881]
[1737600307703,0.09734803,102330.0,102320.0,0.1121881]
[1737600307905,0.09734803,102330.0,102320.0,0.2621881]
[1737600308931,0.09734803,102330.0,102320.0,0.37210632]
[1737600309797,7.4e-07,102330.0,102320.0,0.37210632]
[1737600310071,0.01040074,102330.0,102320.0,0.37210632]
[1737600310446,0.01040074,102330.0,102320.0,3.37290632]
[1737600310642,0.01040074,102330.0,102320.0,0.69740632]
[1737600312575,0.01040074,102330.0,102320.0,0.2621881]
[1737600312802,0.1087278,102330.0,102320.0,0.2621881]
[1737600313206,0.1559278,102330.0,102320.0,0.2621881]
[1737600313614,0.15494803,102330.0,102320.0,0.2621881]
[1737600313841,0.15494803,102330.0,102320.0,0.37210632]
[1737600314189,0.1559278,102330.0,102320.0,0.2621881]
[1737600314593,0.15494803,102330.0,102320.0,0.2621881]
[1737600316385,0.15494803,102330.0,102320.0,0.37210632]
[1737600316537,0.10774803,102330.0,102320.0,0.37210632]
[1737600319637,0.01040074,102330.0,102320.0,0.37210632]
[1737600320856,0.1087278,102330.0,102320.0,0.2621881]
[1737600321920,0.1561278,102330.0,102320.0,0.2621881]
[1737600322079,0.23054803,102330.0,102320.0,0.25262156]
[1737600323122,0.32827103,102330.0,102320.0,0.25262156]
[1737600323374,0.23054803,102330.0,102320.0,0.25262156]
[1737600324400,0.77254803,102330.0,102320.0,0.25262156]
[1737600328073,0.78229956,102330.0,102320.0,0.25262156]
[1737600333902,0.88002256,102330.0,102320.0,0.00488956]
[1737600334110,1.05994078,102330.0,102320.0,0.00488956]
[1737600334523,1.149859,102330.0,102320.0,0.00488956]
[1737600334726,1.36624078,102330.0,102320.0,0.00488956]
[1737600340813,1.45296048,102330.0,102320.0,0.00488956]
[1737600344151,1.34304226,102330.0,102320.0,0.00488956]
[1737600345151,1.33210926,102330.0,102320.0,0.00488956]
[1737600345354,1.38210926,102330.0,102320.0,0.00488956]
[1737600347278,1.22398626,102330.0,102320.0,0.00488956]
[1737600347510,1.06276773,102330.0,102320.0,0.10262156]
[1737600348141,1.06276773,102330.0,102320.0,0.25262156]
[1737600348354,0.19446773,102330.0,102320.0,0.25262156]
[1737600349410,0.1954475,102330.0,102320.0,0.25262156]
[1737600350051,0.1087278,102330.0,102320.0,0.25262156]
[1737600350287,0.2064508,102330.0,102320.0,0.15488956]
[1737600350501,0.43976902,102330.0,102320.0,0.00488956]
[1737600350704,0.50878925,102330.0,102320.0,0.00488956]
[1737600350841,0.39887103,102330.0,102320.0,0.00488956]
[1737600351040,0.34887103,102330.0,102320.0,0.10262156]
[1737600351246,0.10774803,102330.0,102320.0,0.10262156]
[1737600351450,0.1087278,102330.0,102320.0,0.10262156]
[1737600351646,0.10774803,102330.0,102320.0,0.25262156]
[1737600352013,0.10770803,102330.0,102320.0,0.25262156]
[1737600353925,7.4e-07,102330.0,102320.0,0.40873978]
[1737600354129,0.01036074,102330.0,102320.0,3.22103978]
[1737600354331,0.01036074,102330.0,102320.0,3.43373978]
[1737600354958,0.01036074,102330.0,102320.0,3.40103978]
[1737600355107,0.01036074,102330.0,102320.0,3.38273978]
[1737600355311,0.01036074,102330.0,102320.0,3.32273978]
[1737600355525,0.01036074,102330.0,102320.0,3.33249686]
[1737600355723,0.01036074,102330.0,102320.0,0.39087864]
[1737600356114,0.01036074,102330.0,102320.0,0.60057864]
[1737600356319,0.01036074,102330.0,102320.0,0.73349686]
[1737600357357,0.01036074,102330.0,102320.0,0.62357864]
[1737600357567,0.01036074,102330.0,102320.0,0.59577864]
[1737600358107,0.01036074,102330.0,102320.0,0.39087864]
[1737600358439,0.01036074,102330.0,102320.0,0.26237864]
[1737600358641,0.01036074,102330.0,102320.0,0.37229686]
[1737600358850,7.4e-07,102330.0,102320.0,5.37849686]
[1737600359055,7.4e-07,102330.0,102320.0,0.52379686]
[1737600359664,7.4e-07,102330.0,102320.0,0.50079686]
[1737600361368,0.01036074,102330.0,102320.0,0.50079686]
[1737600361593,0.01036074,102330.0,102320.0,2.29159686]
[1737600361854,7.4e-07,102330.0,102320.0,2.59186237]
[1737600362096,7.4e-07,102330.0,102320.0,0.80106237]
[1737600362610,7.4e-07,102330.0,102320.0,0.69114415]
[1737600363312,7.4e-07,102330.0,102320.0,0.80106237]
[1737600364048,7.4e-07,102330.0,102320.0,0.69114415]
[1737600364283,7.4e-07,102330.0,102320.0,0.67114415]
[1737600364730,7.4e-07,102330.0,102320.0,0.62114415]
[1737600364955,7.4e-07,102330.0,102320.0,0.67114415]
[1737600365648,7.4e-07,102330.0,102320.0,0.80106237]
[1737600365883,9e-07,102350.0,102340.0,0.53163122]
[1737600366135,9e-07,102350.0,102340.0,0.65825289]
[1737600366341,9e-07,102350.0,102340.0,0.66305876]
[1737600368208,9e-07,102350.0,102340.0,0.68791754]
[1737600368407,9e-07,102350.0,102340.0,0.66305876]
[1737600368607,0.0001425,102380.0,102370.0,0.352984]
[1737600368809,0.0001425,102380.0,102370.0,0.63080785]
[1737600369058,0.0001425,102380.0,102370.0,0.54850785]
[1737600369404,0.0001425,102380.0,102370.0,0.63080785]
[1737600369857,0.00019294,102380.0,102370.0,0.63080785]
[1737600370286,0.00019294,102380.0,102370.0,0.54850785]
[1737600371506,0.00010411,102380.0,102370.0,0.54850785]
[1737600371902,0.00010411,102380.0,102370.0,0.36240785]
[1737600372296,0.00010411,102380.0,102370.0,0.51265078]
[1737600372502,0.00010411,102380.0,102370.0,5.5982707]
[1737600372705,0.00010411,102380.0,102370.0,3.3446707]
[1737600373305,0.00010411,102380.0,102370.0,2.52840349]
[1737600373511,0.00010411,102380.0,102370.0,1.53610349]
[1737600373734,0.00010411,102380.0,102370.0,0.39530349]
[1737600373906,0.00010411,102380.0,102370.0,1.97710349]
[1737600374116,0.00010411,102380.0,102370.0,2.06402341]
[1737600376801,1.1e-07,102380.0,102370.0,2.1613707]
[1737600377014,0.0001424,102400.0,102390.0,0.174465]
[1737600377253,0.0006467,102400.0,102390.0,0.35758322]
[1737600377478,0.0006467,102400.0,102390.0,0.36243052]
[1737600377659,0.0006467,102400.0,102390.0,0.2525123]